[Event "Ceske Budejovice Open-A 2019"]
[Site "Ceske Budejovice"]
[Date "2019.07.06"]
[Round "8.25"]
[White "Petras, Milan"]
[Black "Schindler, Gerhard"]
[Result "1-0"]
[ECO "B01"]
[WhiteElo "1935"]
[BlackElo "1769"]
[Annotator "NA"]
[PlyCount "33"]
[EventDate "2019.07.02"]
[EventCountry "CZE"]
[SourceTitle "playchess.com"]
[Source "ChessBase"]
[SourceQuality "1"]
[TimeControl "5400+30"]

1. e4 {[%emt 0:00:00]} d5 {[%emt 0:00:00]} 2. Nc3 {[%emt 0:00:51]} d4 {[%emt 0:01:32]} 3. Nce2 {[%emt 0:00:05]} c5 {[%emt 0:02:16]} 4. Ng3 {[%emt 0:00:46]} e5 {[%emt 0:05:01]} 5. Bc4 {[%emt 0:01:34]} Nf6 {[%emt 0:02:28]} 6. d3 {[%emt 0:04:38]} g6 {[%emt 0:01:49]} 7. Nf3 {[%emt 0:00:57]} Bg4 {[%emt 0:07:51]} 8. Bxf7+ {[%emt 0:03:18]} Kxf7 {[%emt 0:04:08]} 9. Nxe5+ {[%emt 0:00:13]} Kg7 {[%emt 0:01:21]} 10. Nxg4 {[%emt 0:00:08]} h5 {[%emt 0:02:59]} 11. Nxf6 {[%emt 0:00:44]} Qxf6 {[%emt 0:00:13]} 12. h4 {[%emt 0:02:30]} Nc6 {[%emt 0:01:10]} 13. Bg5 {[%emt 0:03:44]} Qe6 {[%emt 0:01:06]} 14. f4 {[%emt 0:00:51]} Re8 {[%emt 0:01:21]} 15. O-O {[%emt 0:01:02]} Be7 {[%emt 0:02:22]} 16. f5 {[%emt 0:08:44]} Qd6 {[%emt 0:01:28]} 17. f6+ {[%emt 0:01:06]} 1-0

[Event "Ceske Budejovice Open-A 2019"]
[Site "Ceske Budejovice"]
[Date "2019.07.07"]
[Round "9.3"]
[White "Nagy, Gabor"]
[Black "Karasek, Lukas"]
[Result "1/2-1/2"]
[ECO "A05"]
[WhiteElo "2474"]
[BlackElo "2278"]
[Annotator "ChessBase"]
[PlyCount "110"]
[EventDate "2019.07.02"]
[EventCountry "CZE"]
[SourceTitle "playchess.com"]
[Source "ChessBase"]
[SourceQuality "1"]
[TimeControl "5400+30"]

1. Nf3 {[%emt 0:00:00]} Nf6 {[%emt 0:01:53]} 2. c4 {[%emt 0:00:14]} g6 {[%emt 0:00:59]} 3. d4 {[%emt 0:00:23]} Bg7 {[%emt 0:00:14]} 4. Nc3 {[%emt 0:01:09]} O-O {[%emt 0:01:19]} 5. Bg5 {[%emt 0:00:48]} d6 {[%emt 0:05:23]} 6. e3 {[%emt 0:02:37]} h6 {[%emt 0:11:03]} 7. Bh4 {[%emt 0:00:12]} c5 {[%emt 0:06:05]} 8. Be2 {[%emt 0:00:45]} cxd4 {[%emt 0:06:44]} 9. Nxd4 {[%emt 0:00:17]} Nc6 {[%emt 0:01:40]} 10. O-O {[%emt 0:00:20]} Bd7 {[%emt 0:02:37]} 11. Rc1 {[%emt 0:00:22]} a6 {[%emt 0:14:50]} 12. a3 {[%emt 0:00:45]} Rc8 {[%emt 0:02:48]} 13. b4 {[%emt 0:01:56]} Nxd4 {[%emt 0:11:24]} 14. exd4 {[%emt 0:00:17]} b6 {[%emt 0:00:10]} 15. Re1 {[%emt 0:01:00]} Re8 {[%emt 0:00:05]} 16. Bf1 {[%emt 0:00:41]} Bc6 {[%emt 0:04:14]} 17. h3 {[%emt 0:01:22]} Qd7 {[%emt 0:04:40]} 18. Qd2 {[%emt 0:02:48]} a5 {[%emt 0:04:04]} 19. d5 {[%emt 0:03:53]} Bb7 {[%emt 0:00:37]} 20. Qe3 {[%emt 0:01:46]} Qd8 {[%emt 0:06:19]} 21. Na4 {[%emt 0:02:53]} g5 {[%emt 0:00:36]} 22. Bg3 {[%emt 0:00:31]} Nd7 {[%emt 0:00:03]} 23. h4 {[%emt 0:04:32]} e5 {[%emt 0:01:38]} 24. dxe6 {[%emt 0:01:04]} Rxe6 {[%emt 0:00:06]} 25. Qd2 {[%emt 0:00:09]} Ne5 {[%emt 0:01:09]} 26. hxg5 {[%emt 0:00:21]} hxg5 {[%emt 0:00:03]} 27. Red1 {[%emt 0:03:29]} Rh6 {[%emt 0:05:33]} 28. c5 {[%emt 0:01:00]} Qf6 {[%emt 0:00:31]} 29. f4 {[%emt 0:02:43]} gxf4 {[%emt 0:02:13]} 30. Qxf4 {[%emt 0:00:12]} bxc5 {[%emt 0:00:11]} 31. Qxf6 {[%emt 0:01:25]} Rxf6 {[%emt 0:01:56]} 32. Nb6 {[%emt 0:00:13]} Re8 {[%emt 0:04:21]} 33. Bxe5 {[%emt 0:01:49]} Rxe5 {[%emt 0:00:13]} 34. Nd7 {[%emt 0:00:30]} Rxf1+ {[%emt 0:00:41]} 35. Kxf1 {[%emt 0:00:24]} Rf5+ {[%emt 0:00:18]} 36. Kg1 {[%emt 0:00:39]} axb4 {[%emt 0:00:33]} 37. axb4 {[%emt 0:00:13]} Bd4+ {[%emt 0:00:33]} 38. Kh2 {[%emt 0:00:05]} Rh5+ {[%emt 0:00:42]} 39. Kg3 {[%emt 0:00:02]} Rg5+ {[%emt 0:00:24]} 40. Kf4 {[%emt 0:00:25]} Rxg2 {[%emt 0:00:36]} 41. bxc5 {[%emt 0:00:27]} Rf2+ {[%emt 0:00:00]} 42. Kg3 {[%emt 0:00:00]} Rf3+ {[%emt 0:00:00]} 43. Kg4 {[%emt 0:00:00]} dxc5 {[%emt 0:00:00]} 44. Nxc5 {[%emt 0:00:00]} Bxc5 {[%emt 0:00:00]} 45. Rxc5 {[%emt 0:00:00]} Rf6 {[%emt 0:00:00]} 46. Rd7 {[%emt 0:00:00]} Be4 {[%emt 0:00:52]} 47. Re5 {[%emt 0:00:00]} Bg6 {[%emt 0:00:48]} 48. Rd8+ {[%emt 0:00:00]} Kg7 {[%emt 0:00:05]} 49. Ree8 {[%emt 0:00:00]} Ra6 {[%emt 0:00:28]} 50. Rg8+ {[%emt 0:00:00]} Kf6 {[%emt 0:00:05]} 51. Rd4 {[%emt 0:00:00]} Ra5 {[%emt 0:01:27]} 52. Rf4+ {[%emt 0:00:00]} Ke7 {[%emt 0:00:23]} 53. Rb8 {[%emt 0:00:00]} Rc5 {[%emt 0:00:09]} 54. Kf3 {[%emt 0:00:00]} Rc3+ {[%emt 0:00:14]} 55. Ke2 {[%emt 0:00:00]} Ra3 {[%emt 0:00:12]} 1/2-1/2

[Event "Ceske Budejovice Open-A 2019"]
[Site "Ceske Budejovice"]
[Date "2019.07.07"]
[Round "9.5"]
[White "Barrish, Daniel"]
[Black "Richterova, Natasa"]
[Result "1-0"]
[ECO "D30"]
[WhiteElo "2237"]
[BlackElo "2179"]
[Annotator "NA"]
[PlyCount "93"]
[EventDate "2019.07.02"]
[EventCountry "CZE"]
[SourceTitle "playchess.com"]
[Source "ChessBase"]
[SourceQuality "1"]
[TimeControl "5400+30"]

1. d4 {[%emt 0:05:43]} d5 {[%emt 0:00:25]} 2. c4 {[%emt 0:00:08]} e6 {[%emt 0:00:05]} 3. Nf3 {[%emt 0:00:06]} c6 {[%emt 0:00:18]} 4. e3 {[%emt 0:00:07]} f5 {[%emt 0:00:05]} 5. b3 {[%emt 0:01:36]} Bd6 {[%emt 0:02:02]} 6. Bd3 {[%emt 0:01:56]} Qe7 {[%emt 0:00:28]} 7. O-O {[%emt 0:00:53]} Nh6 {[%emt 0:00:13]} 8. Bb2 {[%emt 0:00:47]} Nd7 {[%emt 0:00:43]} 9. Qc1 {[%emt 0:00:57]} O-O {[%emt 0:03:21]} 10. Ba3 {[%emt 0:01:49]} Bxa3 {[%emt 0:08:24]} 11. Nxa3 {[%emt 0:00:07]} Nf6 {[%emt 0:18:23]} 12. Nc2 {[%emt 0:03:42]} Bd7 {[%emt 0:12:30]} 13. b4 {[%emt 0:05:56]} a6 {[%emt 0:03:50]} 14. c5 {[%emt 0:03:35]} Nf7 {[%emt 0:03:24]} 15. Ne5 {[%emt 0:01:26]} g5 {[%emt 0:04:29]} 16. f4 {[%emt 0:00:59]} gxf4 {[%emt 0:02:36]} 17. exf4 {[%emt 0:00:50]} Kh8 {[%emt 0:02:08]} 18. Qe1 {[%emt 0:01:19]} Nxe5 {[%emt 0:02:04]} 19. dxe5 {[%emt 0:00:26]} Ng4 {[%emt 0:04:16]} 20. h3 {[%emt 0:02:30]} Nh6 {[%emt 0:00:13]} 21. Nd4 {[%emt 0:01:37]} Rg8 {[%emt 0:00:21]} 22. Kh2 {[%emt 0:00:35]} Rg7 {[%emt 0:00:28]} 23. Rg1 {[%emt 0:02:55]} Rag8 {[%emt 0:05:29]} 24. g3 {[%emt 0:00:25]} Be8 {[%emt 0:02:05]} 25. Be2 {[%emt 0:00:21]} Rf8 {[%emt 0:02:48]} 26. a4 {[%emt 0:00:32]} Bd7 {[%emt 0:02:44]} 27. Qc3 {[%emt 0:03:26]} Rc8 {[%emt 0:00:39]} 28. Rg2 {[%emt 0:02:59]} Be8 {[%emt 0:01:26]} 29. Kg1 {[%emt 0:00:37]} Bg6 {[%emt 0:03:03]} 30. Kf2 {[%emt 0:01:12]} Nf7 {[%emt 0:03:08]} 31. Ke1 {[%emt 0:02:55]} h6 {[%emt 0:01:24]} 32. Kd2 {[%emt 0:01:16]} Kh7 {[%emt 0:00:52]} 33. Rag1 {[%emt 0:00:56]} Rcg8 {[%emt 0:01:06]} 34. Kc1 {[%emt 0:01:29]} Nd8 {[%emt 0:00:06]} 35. Kb2 {[%emt 0:00:45]} Be8 {[%emt 0:00:15]} 36. g4 {[%emt 0:06:43]} Qh4 {[%emt 0:05:02]} 37. Nf3 {[%emt 0:11:04]} Qe7 {[%emt 0:00:49]} 38. Bd3 {[%emt 0:06:46]} Bg6 {[%emt 0:05:35]} 39. Nd4 {[%emt 0:03:13]} fxg4 {[%emt 0:00:34]} 40. hxg4 {[%emt 0:01:15]} Kh8 {[%emt 0:01:14]} 41. f5 {[%emt 0:01:27]} exf5 {[%emt 0:00:08]} 42. gxf5 {[%emt 0:00:24]} Qxe5 {[%emt 0:00:00]} 43. fxg6 {[%emt 0:00:00]} Rf8 {[%emt 0:00:00]} 44. Rh1 {[%emt 0:00:00]} h5 {[%emt 0:00:00]} 45. Rgh2 {[%emt 0:00:00]} Kg8 {[%emt 0:00:00]} 46. Rxh5 {[%emt 0:00:00]} Rf2+ {[%emt 0:00:00]} 47. Kb3 {[%emt 0:00:00]} 1-0

[Event "Ceske Budejovice Open-A 2019"]
[Site "Ceske Budejovice"]
[Date "2019.07.07"]
[Round "9.6"]
[White "Barak, David"]
[Black "Plischki, Sebastian"]
[Result "0-1"]
[ECO "E53"]
[WhiteElo "2015"]
[BlackElo "2420"]
[Annotator "NA"]
[PlyCount "114"]
[EventDate "2019.07.02"]
[EventCountry "CZE"]
[SourceTitle "playchess.com"]
[Source "ChessBase"]
[SourceQuality "1"]
[TimeControl "5400+30"]

1. d4 {[%emt 0:00:00]} Nf6 {[%emt 0:00:00]} 2. c4 {[%emt 0:00:00]} e6 {[%emt 0:00:00]} 3. Nc3 {[%emt 0:00:00]} Bb4 {[%emt 0:00:00]} 4. e3 {[%emt 0:00:00]} d5 {[%emt 0:00:11]} 5. Nf3 {[%emt 0:00:00]} O-O {[%emt 0:00:20]} 6. Bd3 {[%emt 0:00:15]} c5 {[%emt 0:00:15]} 7. O-O {[%emt 0:01:35]} cxd4 {[%emt 0:00:12]} 8. exd4 {[%emt 0:01:21]} dxc4 {[%emt 0:00:12]} 9. Bxc4 {[%emt 0:00:28]} b6 {[%emt 0:00:13]} 10. Bg5 {[%emt 0:05:17]} Bb7 {[%emt 0:00:13]} 11. Qe2 {[%emt 0:03:50]} Bxc3 {[%emt 0:01:11]} 12. bxc3 {[%emt 0:00:18]} Nbd7 {[%emt 0:00:07]} 13. Rac1 {[%emt 0:02:26]} Qc7 {[%emt 0:00:53]} 14. Bd3 {[%emt 0:02:25]} Ng4 {[%emt 0:01:26]} 15. Be4 {[%emt 0:11:53]} Bxe4 {[%emt 0:00:10]} 16. Qxe4 {[%emt 0:00:18]} Ngf6 {[%emt 0:00:16]} 17. Qe2 {[%emt 0:02:08]} Rac8 {[%emt 0:01:31]} 18. c4 {[%emt 0:01:57]} Qb7 {[%emt 0:01:15]} 19. Rfe1 {[%emt 0:11:25]} Rfe8 {[%emt 0:05:54]} 20. Qd3 {[%emt 0:07:00]} h6 {[%emt 0:04:27]} 21. Bh4 {[%emt 0:02:35]} Qa6 {[%emt 0:01:09]} 22. Qb3 {[%emt 0:01:46]} Rc6 {[%emt 0:06:36]} 23. Rc3 {[%emt 0:12:19]} Rec8 {[%emt 0:05:20]} 24. Nd2 {[%emt 0:06:25]} Qa5 {[%emt 0:04:36]} 25. Qa3 {[%emt 0:08:01]} Qxa3 {[%emt 0:03:03]} 26. Rxa3 {[%emt 0:00:06]} Rd6 {[%emt 0:01:56]} 27. Bxf6 {[%emt 0:03:10]} Nxf6 {[%emt 0:00:18]} 28. Rd3 {[%emt 0:01:17]} Rc5 {[%emt 0:06:56]} 29. Ree3 {[%emt 0:06:15]} Ra5 {[%emt 0:00:46]} 30. a3 {[%emt 0:00:55]} Ra4 {[%emt 0:00:46]} 31. Re1 {[%emt 0:03:44]} b5 {[%emt 0:05:52]} 32. Rc1 {[%emt 0:03:12]} bxc4 {[%emt 0:00:39]} 33. Rxc4 {[%emt 0:00:05]} Rxc4 {[%emt 0:05:36]} 34. Nxc4 {[%emt 0:00:06]} Rc6 {[%emt 0:00:06]} 35. Rc3 {[%emt 0:00:26]} Ne4 {[%emt 0:07:43]} 36. Rc2 {[%emt 0:00:26]} Nd6 {[%emt 0:00:38]} 37. Ne3 {[%emt 0:00:43]} Ra6 {[%emt 0:00:22]} 38. Ra2 {[%emt 0:02:02]} Nb5 {[%emt 0:01:10]} 39. Nc2 {[%emt 0:01:03]} Rd6 {[%emt 0:01:54]} 40. Kf1 {[%emt 0:02:01]} Nxd4 {[%emt 0:00:18]} 41. Nxd4 {[%emt 0:00:00]} Rxd4 {[%emt 0:00:00]} 42. Ke2 {[%emt 0:00:00]} Ra4 {[%emt 0:00:00]} 43. Kd3 {[%emt 0:00:00]} f5 {[%emt 0:00:00]} 44. Kc3 {[%emt 0:00:00]} Kf7 {[%emt 0:00:00]} 45. Kb3 {[%emt 0:00:00]} Rd4 {[%emt 0:00:00]} 46. Kc3 {[%emt 0:00:00]} e5 {[%emt 0:00:00]} 47. Rb2 {[%emt 0:00:00]} Rd7 {[%emt 0:00:00]} 48. Rb5 {[%emt 0:00:00]} Kf6 {[%emt 0:00:00]} 49. Rb8 {[%emt 0:00:00]} e4 {[%emt 0:00:00]} 50. Rf8+ {[%emt 0:00:00]} Ke5 {[%emt 0:00:00]} 51. Re8+ {[%emt 0:00:00]} Kf4 {[%emt 0:00:00]} 52. Rg8 {[%emt 0:00:00]} g5 {[%emt 0:00:00]} 53. Rf8 {[%emt 0:00:00]} Rd3+ {[%emt 0:00:00]} 54. Kb4 {[%emt 0:00:00]} Rd2 {[%emt 0:00:00]} 55. g3+ {[%emt 0:00:00]} Ke5 {[%emt 0:00:00]} 56. Rh8 {[%emt 0:00:00]} Rxf2 {[%emt 0:00:00]} 57. Rxh6 {[%emt 0:00:00]} f4 {[%emt 0:00:00]} 0-1

[Event "Ceske Budejovice Open-A 2019"]
[Site "Ceske Budejovice"]
[Date "2019.07.07"]
[Round "9.7"]
[White "Marsalek, Zdenek"]
[Black "Nagy, Ladislav"]
[Result "1/2-1/2"]
[ECO "A46"]
[WhiteElo "2259"]
[BlackElo "2061"]
[Annotator "NA"]
[PlyCount "33"]
[EventDate "2019.07.02"]
[EventCountry "CZE"]
[SourceTitle "playchess.com"]
[Source "ChessBase"]
[SourceQuality "1"]
[TimeControl "5400+30"]

1. d4 {[%emt 0:00:00]} Nf6 {[%emt 0:01:49]} 2. Nf3 {[%emt 0:00:11]} e6 {[%emt 0:00:25]} 3. g3 {[%emt 0:00:09]} d5 {[%emt 0:00:48]} 4. Bg2 {[%emt 0:00:15]} b5 {[%emt 0:01:57]} 5. O-O {[%emt 0:02:31]} Bb7 {[%emt 0:01:07]} 6. b3 {[%emt 0:00:22]} Nbd7 {[%emt 0:02:15]} 7. Nbd2 {[%emt 0:00:55]} Bd6 {[%emt 0:08:59]} 8. Bb2 {[%emt 0:00:21]} O-O {[%emt 0:03:19]} 9. c4 {[%emt 0:03:54]} bxc4 {[%emt 0:04:30]} 10. bxc4 {[%emt 0:00:10]} dxc4 {[%emt 0:02:23]} 11. Nxc4 {[%emt 0:00:11]} Nb6 {[%emt 0:01:28]} 12. Qc1 {[%emt 0:07:00]} Nxc4 {[%emt 0:09:41]} 13. Qxc4 {[%emt 0:00:42]} Bd5 {[%emt 0:02:10]} 14. Qc2 {[%emt 0:02:50]} Qe7 {[%emt 0:10:50]} 15. Ne5 {[%emt 0:01:43]} Bxg2 {[%emt 0:02:36]} 16. Kxg2 {[%emt 0:00:08]} c5 {[%emt 0:02:59]} 17. dxc5 {[%emt 0:01:58]} 1/2-1/2

[Event "Ceske Budejovice Open-A 2019"]
[Site "Ceske Budejovice"]
[Date "2019.07.07"]
[Round "9.8"]
[White "Muron, Miroslav"]
[Black "Rolinek, Dominik"]
[Result "1-0"]
[ECO "B00"]
[WhiteElo "2215"]
[BlackElo "2004"]
[Annotator "NA"]
[PlyCount "69"]
[EventDate "2019.07.02"]
[EventCountry "CZE"]
[SourceTitle "playchess.com"]
[Source "ChessBase"]
[SourceQuality "1"]
[TimeControl "5400+30"]

1. e4 {[%emt 0:00:00]} d6 {[%emt 0:00:00]} 2. Nc3 {[%emt 0:00:00]} Nf6 {[%emt 0:00:00]} 3. g3 {[%emt 0:00:00]} e5 {[%emt 0:00:00]} 4. Bg2 {[%emt 0:00:00]} Be7 {[%emt 0:00:02]} 5. d3 {[%emt 0:00:00]} O-O {[%emt 0:00:07]} 6. Nh3 {[%emt 0:02:33]} c6 {[%emt 0:06:01]} 7. O-O {[%emt 0:02:44]} d5 {[%emt 0:00:12]} 8. Qe2 {[%emt 0:10:29]} dxe4 {[%emt 0:02:11]} 9. dxe4 {[%emt 0:03:09]} h6 {[%emt 0:00:45]} 10. f4 {[%emt 0:06:15]} Bc5+ {[%emt 0:02:36]} 11. Kh1 {[%emt 0:00:40]} exf4 {[%emt 0:00:20]} 12. gxf4 {[%emt 0:01:52]} Bg4 {[%emt 0:00:22]} 13. Qe1 {[%emt 0:03:26]} Re8 {[%emt 0:03:03]} 14. Qg3 {[%emt 0:01:51]} Qc8 {[%emt 0:09:04]} 15. Nf2 {[%emt 0:14:18]} Na6 {[%emt 0:01:26]} 16. e5 {[%emt 0:04:45]} Bxf2 {[%emt 0:01:38]} 17. Rxf2 {[%emt 0:00:20]} Nh5 {[%emt 0:01:12]} 18. Qe3 {[%emt 0:10:08]} Qe6 {[%emt 0:01:36]} 19. Ne4 {[%emt 0:01:21]} Rad8 {[%emt 0:00:40]} 20. Bd2 {[%emt 0:01:30]} b6 {[%emt 0:00:57]} 21. Rg1 {[%emt 0:07:59]} f6 {[%emt 0:18:04]} 22. Bf3 {[%emt 0:01:46]} Bxf3+ {[%emt 0:04:27]} 23. Qxf3 {[%emt 0:00:03]} Qd5 {[%emt 0:00:20]} 24. Bc3 {[%emt 0:02:00]} f5 {[%emt 0:01:47]} 25. Nd6 {[%emt 0:00:46]} Qxf3+ {[%emt 0:00:12]} 26. Rxf3 {[%emt 0:00:02]} Re6 {[%emt 0:00:49]} 27. Nxf5 {[%emt 0:00:28]} Rf8 {[%emt 0:01:37]} 28. Nd4 {[%emt 0:00:41]} Nxf4 {[%emt 0:01:24]} 29. Nxe6 {[%emt 0:00:23]} Nxe6 {[%emt 0:00:05]} 30. Rf6 {[%emt 0:00:59]} Rxf6 {[%emt 0:00:55]} 31. exf6 {[%emt 0:00:03]} g5 {[%emt 0:00:07]} 32. Rd1 {[%emt 0:01:51]} Nac5 {[%emt 0:05:40]} 33. Be5 {[%emt 0:00:19]} Kf7 {[%emt 0:00:13]} 34. b4 {[%emt 0:00:13]} Ne4 {[%emt 0:02:26]} 35. Rd7+ {[%emt 0:00:03]} 1-0

[Event "Ceske Budejovice Open-A 2019"]
[Site "Ceske Budejovice"]
[Date "2019.07.07"]
[Round "9.9"]
[White "Vltavsky, Vladimir"]
[Black "Sykora, Ondrej"]
[Result "1-0"]
[ECO "D02"]
[WhiteElo "2179"]
[BlackElo "2065"]
[Annotator "NA"]
[PlyCount "107"]
[EventDate "2019.07.02"]
[EventCountry "CZE"]
[SourceTitle "playchess.com"]
[Source "ChessBase"]
[SourceQuality "1"]
[TimeControl "5400+30"]

1. d4 {[%emt 0:00:00]} d5 {[%emt 0:00:00]} 2. Nf3 {[%emt 0:00:00]} Bg4 {[%emt 0:00:00]} 3. e3 {[%emt 0:00:37]} Nc6 {[%emt 0:00:14]} 4. Be2 {[%emt 0:00:37]} e6 {[%emt 0:04:00]} 5. O-O {[%emt 0:00:35]} Bd6 {[%emt 0:01:19]} 6. b3 {[%emt 0:05:02]} Nce7 {[%emt 0:03:19]} 7. Bb2 {[%emt 0:01:11]} Bxf3 {[%emt 0:00:26]} 8. Bxf3 {[%emt 0:00:11]} f5 {[%emt 0:00:07]} 9. c4 {[%emt 0:00:45]} c6 {[%emt 0:00:06]} 10. Be2 {[%emt 0:02:13]} Nf6 {[%emt 0:00:08]} 11. Nd2 {[%emt 0:00:46]} O-O {[%emt 0:01:38]} 12. f4 {[%emt 0:01:10]} h6 {[%emt 0:00:42]} 13. Nf3 {[%emt 0:00:39]} Ne4 {[%emt 0:00:09]} 14. Ne5 {[%emt 0:01:00]} Kh7 {[%emt 0:03:19]} 15. Bd3 {[%emt 0:02:59]} Bxe5 {[%emt 0:01:36]} 16. dxe5 {[%emt 0:00:20]} c5 {[%emt 0:01:50]} 17. Qe2 {[%emt 0:03:57]} Qc7 {[%emt 0:04:29]} 18. Rac1 {[%emt 0:01:43]} Qa5 {[%emt 0:02:55]} 19. Qc2 {[%emt 0:06:34]} Rac8 {[%emt 0:02:06]} 20. Rcd1 {[%emt 0:01:36]} Rfd8 {[%emt 0:02:53]} 21. Bxe4 {[%emt 0:07:20]} dxe4 {[%emt 0:01:47]} 22. Rd6 {[%emt 0:00:45]} Nc6 {[%emt 0:02:30]} 23. Bc3 {[%emt 0:02:05]} Nb4 {[%emt 0:01:41]} 24. Qd2 {[%emt 0:04:56]} Rxd6 25. exd6 {[%emt 0:03:51]} Rd8 {[%emt 0:06:30]} 26. Rd1 {[%emt 0:03:22]} Qb6 {[%emt 0:04:01]} 27. a3 {[%emt 0:04:00]} Nd3 {[%emt 0:00:23]} 28. Ba5 {[%emt 0:00:08]} Qxd6 {[%emt 0:00:09]} 29. Bxd8 {[%emt 0:00:06]} Qxd8 {[%emt 0:00:11]} 30. b4 {[%emt 0:02:26]} Qc7 {[%emt 0:00:12]} 31. Qc3 {[%emt 0:00:49]} b6 {[%emt 0:00:36]} 32. b5 {[%emt 0:01:46]} Qe7 {[%emt 0:05:41]} 33. Ra1 {[%emt 0:01:26]} e5 {[%emt 0:00:45]} 34. fxe5 {[%emt 0:04:59]} Qg5 {[%emt 0:00:13]} 35. Qd2 {[%emt 0:00:08]} Qe7 {[%emt 0:00:17]} 36. a4 {[%emt 0:03:00]} Qxe5 {[%emt 0:01:05]} 37. Rf1 {[%emt 0:00:08]} g5 {[%emt 0:01:03]} 38. a5 {[%emt 0:00:20]} f4 {[%emt 0:01:38]} 39. axb6 {[%emt 0:00:12]} axb6 {[%emt 0:00:01]} 40. Qa2 {[%emt 0:00:34]} Qe7 {[%emt 0:02:42]} 41. Qe2 {[%emt 0:02:35]} Qe6 {[%emt 0:01:41]} 42. exf4 {[%emt 0:02:14]} gxf4 {[%emt 0:00:50]} 43. g3 {[%emt 0:00:24]} Qxc4 {[%emt 0:03:26]} 44. gxf4 {[%emt 0:00:54]} Qd4+ {[%emt 0:00:07]} 45. Kh1 {[%emt 0:01:42]} e3 {[%emt 0:04:16]} 46. Qf3 {[%emt 0:02:13]} Nf2+ {[%emt 0:02:18]} 47. Kg2 {[%emt 0:00:12]} Qg7+ {[%emt 0:00:09]} 48. Qg3 {[%emt 0:00:20]} Ne4 {[%emt 0:00:54]} 49. Qxg7+ {[%emt 0:00:27]} Kxg7 {[%emt 0:00:04]} 50. Re1 {[%emt 0:00:07]} Nc3 {[%emt 0:00:08]} 51. Rxe3 {[%emt 0:00:10]} Nxb5 {[%emt 0:00:04]} 52. Rb3 {[%emt 0:00:11]} Nd4 {[%emt 0:00:30]} 53. Rxb6 {[%emt 0:00:05]} h5 {[%emt 0:00:32]} 54. Kf2 {[%emt 0:00:23]} 1-0

[Event "Ceske Budejovice Open-A 2019"]
[Site "Ceske Budejovice"]
[Date "2019.07.07"]
[Round "9.10"]
[White "Mulenko, Alexander"]
[Black "Steiner, Juraj"]
[Result "1/2-1/2"]
[ECO "A00"]
[WhiteElo "2055"]
[BlackElo "1896"]
[Annotator "NA"]
[PlyCount "38"]
[EventDate "2019.07.02"]
[EventCountry "CZE"]
[SourceTitle "playchess.com"]
[Source "ChessBase"]
[SourceQuality "1"]
[TimeControl "5400+30"]

1. g3 {[%emt 0:00:00]} Nf6 {[%emt 0:00:00]} 2. Bg2 {[%emt 0:00:00]} d5 {[%emt 0:01:23]} 3. c4 {[%emt 0:00:12]} c6 {[%emt 0:00:28]} 4. b3 {[%emt 0:00:12]} Bg4 {[%emt 0:00:59]} 5. Bb2 {[%emt 0:00:18]} e6 {[%emt 0:00:17]} 6. Nf3 {[%emt 0:01:47]} Nbd7 {[%emt 0:06:18]} 7. O-O {[%emt 0:00:16]} Be7 {[%emt 0:00:34]} 8. d3 {[%emt 0:00:25]} O-O {[%emt 0:01:23]} 9. Nbd2 {[%emt 0:00:20]} Nc5 {[%emt 0:01:32]} 10. b4 {[%emt 0:06:50]} Ncd7 {[%emt 0:00:19]} 11. a3 {[%emt 0:01:00]} a5 {[%emt 0:00:46]} 12. Bc3 {[%emt 0:01:36]} c5 {[%emt 0:05:39]} 13. bxc5 {[%emt 0:07:28]} Nxc5 {[%emt 0:01:06]} 14. h3 {[%emt 0:01:25]} Bh5 {[%emt 0:00:37]} 15. g4 {[%emt 0:00:26]} Bg6 {[%emt 0:01:01]} 16. Ne5 {[%emt 0:01:01]} Qd6 {[%emt 0:17:26]} 17. Ndf3 {[%emt 0:03:56]} Nfd7 {[%emt 0:05:25]} 18. Nxg6 {[%emt 0:04:27]} hxg6 {[%emt 0:00:29]} 19. cxd5 {[%emt 0:01:08]} exd5 1/2-1/2

[Event "Ceske Budejovice Open-A 2019"]
[Site "Ceske Budejovice"]
[Date "2019.07.07"]
[Round "9.11"]
[White "Placer, Sebastian"]
[Black "Schmid, Thomas"]
[Result "0-1"]
[ECO "E98"]
[WhiteElo "2040"]
[BlackElo "2201"]
[Annotator "NA"]
[PlyCount "48"]
[EventDate "2019.07.02"]
[EventCountry "CZE"]
[SourceTitle "playchess.com"]
[Source "ChessBase"]
[SourceQuality "1"]
[TimeControl "5400+30"]

1. d4 {[%emt 0:00:00]} Nf6 {[%emt 0:00:00]} 2. c4 {[%emt 0:00:00]} g6 {[%emt 0:00:00]} 3. Nc3 {[%emt 0:00:00]} Bg7 {[%emt 0:00:00]} 4. e4 {[%emt 0:00:00]} d6 {[%emt 0:00:00]} 5. Nf3 {[%emt 0:00:22]} O-O {[%emt 0:00:00]} 6. Be2 {[%emt 0:00:13]} e5 {[%emt 0:00:00]} 7. O-O {[%emt 0:00:05]} Nc6 {[%emt 0:00:00]} 8. d5 {[%emt 0:00:21]} Ne7 {[%emt 0:00:01]} 9. Ne1 {[%emt 0:00:36]} Nd7 {[%emt 0:00:13]} 10. Be3 {[%emt 0:00:12]} f5 {[%emt 0:00:11]} 11. f3 {[%emt 0:00:05]} f4 {[%emt 0:00:47]} 12. Bf2 {[%emt 0:00:12]} g5 {[%emt 0:01:14]} 13. g4 {[%emt 0:01:26]} fxg3 {[%emt 0:07:09]} 14. hxg3 {[%emt 0:00:03]} Ng6 {[%emt 0:00:33]} 15. Ng2 {[%emt 0:00:20]} Nf6 {[%emt 0:04:19]} 16. c5 {[%emt 0:00:42]} Rf7 {[%emt 0:01:45]} 17. cxd6 {[%emt 0:00:46]} cxd6 {[%emt 0:00:07]} 18. Ne3 {[%emt 0:00:40]} h5 {[%emt 0:00:58]} 19. Nc4 {[%emt 0:02:47]} Bf8 {[%emt 0:06:13]} 20. Be3 {[%emt 0:01:52]} Nf4 {[%emt 0:01:37]} 21. gxf4 {[%emt 0:05:46]} gxf4 {[%emt 0:00:07]} 22. Bf2 {[%emt 0:08:04]} Rg7+ {[%emt 0:00:18]} 23. Kh1 {[%emt 0:01:15]} Qd7 {[%emt 0:00:42]} 24. Bg1 {[%emt 0:04:40]} Qh3+ {[%emt 0:00:10]} 0-1